bitfinex/quotes_ETHUSD_20250210
["timestamp","ask_amount","ask_price","bid_price","bid_amount"]
[1739181427990,0.005,2653.4,2653.3,16.45698341]
[1739181432299,0.005,2653.4,2653.3,12.68809341]
[1739181432609,0.005,2653.4,2653.3,11.87399341]
[1739181433030,3.77374,2653.4,2653.3,11.87399341]
[1739181433242,3.77374,2653.4,2653.3,5.37399341]
[1739181433799,0.005,2653.4,2653.3,5.37399341]
[1739181435098,3.77374,2653.4,2653.3,5.37399341]
[1739181436132,4.53914,2653.4,2653.3,5.37399341]
[1739181436317,4.53914,2653.4,2653.3,0.12399341]
[1739181436702,0.7654,2653.3,2652.9,2.17922438]
[1739181436898,3.76931,2653.0,2652.9,2.17922438]
[1739181437235,3.98471,2653.0,2652.9,2.17922438]
[1739181439839,3.76945,2652.9,2652.8,5.25]
[1739181442106,3.76945,2652.9,2652.8,5.36931395]
[1739181443209,4.53485,2652.9,2652.8,0.11931395]
[1739181443537,0.7654,2652.9,2652.6,2.17922438]
[1739181443706,3.76974,2652.7,2652.6,2.17922438]
[1739181444439,0.2154,2653.3,2652.6,5.94896438]
[1739181444645,3.76909,2653.2,2652.7,9.01967]
[1739181445146,3.76924,2653.1,2652.7,11.75]
[1739181445440,3.76925,2653.1,2652.7,11.75]
[1739181446123,3.76936,2653.0,2652.9,2.17922438]
[1739181446324,3.98476,2653.0,2652.9,2.17922438]
[1739181446634,3.76925,2653.1,2652.9,2.17922438]
[1739181446847,3.76931,2653.0,2652.9,2.17922438]
[1739181447744,3.76918,2653.1,2652.9,2.17922438]
[1739181448051,3.98444,2653.2,2652.9,2.17922438]
[1739181448348,3.76904,2653.2,2652.9,2.17922438]
[1739181448926,3.76917,2653.1,2652.9,2.17922438]
[1739181449127,7.53842,2653.1,2652.9,2.17922438]
[1739181449326,3.76917,2653.1,2652.9,2.17922438]
[1739181451851,3.98471,2653.0,2652.9,2.17922438]
[1739181452152,0.2154,2653.0,2652.9,2.17922438]
[1739181453346,3.98471,2653.0,2652.9,2.17922438]
[1739181453553,3.98471,2653.0,2652.9,2.29963613]
[1739181457258,4.53471,2653.0,2652.9,0.12041175]
[1739181457772,3.76974,2652.7,2652.6,2.17922438]
[1739181459035,3.98478,2653.0,2652.6,2.17922438]
[1739181459239,0.005,2653.4,2652.1,15.36]
[1739181459240,3.98454,2653.2,2652.9,2.17922438]
[1739181459467,3.76914,2653.2,2652.9,2.17922438]
[1739181460170,3.98917,2653.4,2652.9,5.94860438]
[1739181460345,0.005,2653.4,2653.3,2.17922438]
[1739181460541,0.005,2653.4,2653.3,6.76931438]
[1739181460742,0.005,2653.4,2653.3,3.00042438]
[1739181460943,0.005,2653.4,2653.3,0.8212]
[1739181461143,0.005,2653.4,2653.3,0.9415615]
[1739181461709,0.005,2653.4,2653.3,4.7104515]
[1739181462043,0.005,2653.4,2653.3,11.2104515]
[1739181464893,0.005,2653.4,2653.3,16.4604515]
[1739181465594,0.005,2653.4,2653.3,25.3204515]
[1739181472780,0.005,2653.4,2653.3,21.5515615]
[1739181473182,0.005,2653.4,2653.3,15.0515615]
[1739181474214,0.005,2653.4,2653.3,21.5515615]
[1739181474817,0.005,2653.4,2653.3,25.3204515]
[1739181483726,0.2154,2654.1,2653.3,25.3204515]
[1739181483927,3.76713,2654.6,2654.1,4.52935]
[1739181484227,3.76713,2654.6,2654.5,2.17922438]
[1739181484909,4.31713,2654.6,2654.5,2.17922438]
[1739181485112,0.7654,2654.6,2654.5,2.17922438]
[1739181485338,4.53244,2654.6,2654.5,2.17922438]
[1739181486822,7.53244,2654.6,2654.5,2.17922438]
[1739181487022,3.76741,2654.4,2654.2,2.17922438]
[1739181487226,3.76747,2654.3,2654.2,2.17922438]
[1739181488126,3.98287,2654.3,2654.2,2.17922438]
[1739181488353,3.76741,2654.4,2654.2,2.17922438]
[1739181488627,0.2154,2654.5,2654.2,2.17922438]
[1739181489001,3.9826,2654.5,2654.2,2.17922438]
[1739181489543,0.2154,2654.7,2654.3,3.76735]
[1739181489696,0.1454678,2654.8,2654.5,2.95852438]
[1739181490102,0.1454678,2654.8,2654.5,6.72559438]
[1739181490301,0.1454678,2654.8,2654.6,3.76693]
[1739181490501,0.1454678,2654.8,2654.6,9.01693]
[1739181490730,0.1454678,2654.8,2654.7,4.5462]
[1739181490934,0.1454678,2654.8,2654.7,18.6562]
[1739181491116,0.1454678,2654.8,2654.7,25.1562]
[1739181492129,0.1454678,2654.8,2654.7,21.3893]
[1739181492936,280.048484,2655.0,2654.7,21.3893]
[1739181492937,240.86887456,2655.0,2654.9,3.76662]
[1739181493143,196.66957104,2655.0,2654.9,16.06014438]
[1739181493459,145.3790187,2655.0,2654.9,65.40361683]
[1739181493734,137.3792187,2655.0,2654.9,69.17261683]
[1739181493921,137.3792187,2655.0,2654.9,70.49027515]
[1739181494120,127.9630187,2655.0,2654.9,76.99027515]
[1739181494440,126.6141187,2655.0,2654.9,76.99027515]
[1739181494732,121.7809187,2655.0,2654.9,76.99027515]
[1739181494920,117.1619187,2655.0,2654.9,76.21097515]
[1739181495125,111.5121987,2655.0,2654.9,74.58705256]
[1739181495332,111.5121987,2655.0,2654.9,74.31205256]
[1739181495638,111.5121987,2655.0,2654.9,70.23235256]
[1739181495836,89.30759772,2655.0,2654.9,70.23235256]
[1739181496009,83.60645791,2655.0,2654.9,70.23235256]
[1739181496206,56.31651361,2655.0,2654.9,70.86162649]
[1739181496406,0.2,2658.7,2656.1,0.1]
[1739181496744,0.7565,2658.6,2658.5,0.0941263]
[1739181497042,0.7565,2658.6,2658.5,0.11082336]
[1739181497334,0.005,2659.1,2658.5,2.28603251]
[1739181497504,0.7615,2659.1,2658.8,2.17922438]
[1739181497705,4.52219,2659.1,2658.6,1.69034625]
[1739181497922,3.76081,2659.0,2658.3,2.17922438]
[1739181498124,3.76121,2658.8,2658.7,0.09689666]
[1739181498331,4.52218,2659.1,2658.6,2.17922438]
[1739181498701,4.52218,2659.1,2658.3,2.17922438]
[1739181498702,0.7615,2659.1,2658.3,2.17922438]
[1739181498902,3.76197,2658.2,2658.0,2.17922438]
[1739181499106,3.76208,2658.1,2657.8,6.5]
[1739181499403,3.76236,2657.9,2657.8,5.5859375]
[1739181499609,8.06886,2657.9,2657.8,5.5859375]
[1739181499828,8.06886,2657.9,2657.8,4.40501725]
[1739181500405,3.76318,2657.4,2657.0,6.5]
[1739181500556,3.76336,2657.2,2657.0,6.5]
[1739181500734,4.5548,2657.1,2657.0,6.5]
[1739181500930,5.1048,2657.1,2657.0,6.5]
[1739181501132,0.7913,2657.1,2656.3,2.67266369]
[1739181501311,3.76395,2656.8,2656.3,2.67266369]
[1739181501712,3.76395,2656.8,2656.0,12.62502]
[1739181502013,0.7913,2657.1,2656.1,3.7649]
[1739181502316,3.76379,2656.9,2656.0,8.86]
[1739181502644,3.76396,2656.8,2656.0,12.62505]
[1739181502951,3.76379,2656.9,2656.1,3.76481]
[1739181503257,0.7913,2657.1,2656.3,3.76457]
[1739181503846,3.0,2657.2,2656.4,3.76439]
[1739181504254,3.0,2657.2,2656.5,3.7643]
[1739181504465,6.76338,2657.2,2656.4,3.76439]
[1739181504959,3.0,2657.2,2656.5,0.08616142]
[1739181505147,3.76322,2657.3,2656.5,0.08616142]
[1739181505462,0.7913,2657.4,2656.7,3.76405]
[1739181505961,0.7913,2657.4,2656.8,0.08616142]
[1739181506161,0.7913,2657.4,2656.8,3.85006142]
[1739181506457,0.7913,2657.7,2656.8,0.08616142]
[1739181506622,4.53364962,2658.0,2657.2,3.76329]
[1739181506623,3.76229,2658.0,2657.2,3.76329]
[1739181507022,3.76209,2658.1,2657.3,8.86]
[1739181507245,3.76209,2658.1,2657.4,3.76306]
[1739181507459,3.76209,2658.1,2657.4,12.62306]
[1739181507666,3.76209,2658.1,2657.4,8.86]
[1739181507959,3.76209,2658.1,2657.5,0.08616142]
[1739181508457,3.76231,2658.0,2657.5,0.08616142]
[1739181508760,4.55382,2657.8,2657.3,8.86]
[1739181508955,3.76267,2657.7,2657.3,8.86]
[1739181509128,3.7628,2657.6,2657.4,0.08654666]
[1739181509330,3.76293,2657.5,2657.4,0.08654666]
[1739181509750,3.76293,2657.5,2656.7,8.86]
[1739181509952,3.76318,2657.4,2656.6,12.62417]
[1739181510154,3.76331,2657.3,2656.6,12.62417]
[1739181510461,3.76331,2657.3,2656.7,0.08654666]
[1739181510658,3.7635,2657.1,2656.7,0.08654666]
[1739181510956,3.7635,2657.1,2656.5,8.86]
[1739181511161,3.76388,2656.9,2656.6,0.08654666]
[1739181511328,3.76405,2656.8,2656.6,0.08654666]
[1739181511841,3.76409,2656.7,2656.2,8.86]
[1739181512160,3.76443,2656.5,2655.9,8.86]
[1739181512351,8.3202,2656.5,2655.9,8.86]
[1739181512559,4.55573,2656.5,2655.9,8.86]
[1739181513162,0.7913,2656.5,2655.9,12.62517]
[1739181513479,3.76414,2656.7,2656.0,3.76502]
[1739181513624,3.76416,2656.7,2656.0,3.76496]
[1739181514051,7.52836,2656.7,2656.0,3.76496]
[1739181514252,3.76441,2656.5,2655.9,8.86]
[1739181514862,3.76441,2656.5,2655.8,3.95508879]
[1739181514863,3.76451,2656.4,2655.7,8.86]
[1739181515162,0.7913,2656.2,2655.7,8.86]
[1739181515663,0.7913,2656.2,2655.5,8.86]
[1739181515664,4.55617,2656.2,2655.5,8.86]
[1739181515889,3.76502,2656.1,2655.5,8.86]
[1739181516086,4.55613,2656.2,2655.5,8.86]
[1739181516453,4.55613,2656.2,2655.5,12.62562]
[1739181516962,3.76451,2656.4,2655.7,3.7654]
[1739181517126,3.76481,2656.2,2655.5,8.86]
[1739181517333,3.7652,2655.9,2655.5,8.86]
[1739181517545,3.76506,2656.0,2655.5,8.86]
[1739181517731,7.52997,2656.1,2655.6,0.08763897]
[1739181518048,3.76523,2655.9,2655.6,0.08763897]
[1739181518563,4.52413,2655.9,2655.6,0.08763897]
[1739181518951,0.7589,2655.9,2655.6,0.08763897]
[1739181519166,3.76508,2656.0,2655.6,0.08763897]
[1739181519567,3.76498,2656.1,2655.6,0.08763897]
[1739181519960,7.52999,2656.1,2655.6,0.08763897]
[1739181520173,3.76498,2656.1,2655.6,0.08763897]
[1739181520548,0.7589,2656.2,2655.6,0.08763897]
[1739181520754,3.76453,2656.4,2655.7,3.76539]
[1739181520972,4.52333,2656.5,2655.8,0.08905993]
[1739181520973,3.76464,2656.3,2655.8,0.08905993]
[1739181521193,3.76481,2656.2,2655.6,3.76561]
[1739181521481,3.76481,2656.2,2655.9,0.08905993]
[1739181521664,3.76492,2656.1,2655.5,3.76576]
[1739181521865,3.76492,2656.1,2656.0,0.08897419]
[1739181522067,3.76535,2655.8,2655.4,5.25]
[1739181522306,3.76535,2655.8,2655.2,3.76614]
[1739181522498,4.52397,2656.0,2655.2,3.76609]
[1739181522807,3.76507,2656.0,2655.4,3.76585]
[1739181523088,3.7648,2656.2,2655.5,3.76576]
[1739181523263,3.7648,2656.2,2655.6,3.76561]
[1739181523653,0.7589,2656.3,2655.6,3.76561]
[1739181523850,4.52359,2656.3,2655.6,3.76561]
[1739181524045,4.52359,2656.3,2655.6,7.53113]
[1739181524250,4.52359,2656.3,2655.6,3.76552]
[1739181524557,3.76478,2656.2,2655.6,3.76552]
[1739181524768,7.52968,2656.2,2655.6,3.76552]
[1739181525079,3.765,2656.1,2655.4,10.20430369]
[1739181525286,3.76529,2655.9,2655.2,3.7661]
[1739181525587,7.53062,2655.9,2655.2,3.7661]
[1739181525775,7.53056,2655.9,2655.2,3.7661]
[1739181526153,3.76527,2655.9,2655.2,7.53218]
[1739181526356,3.76495,2656.1,2655.4,3.76581]
[1739181526781,3.76495,2656.1,2655.2,3.76613]
[1739181526985,3.76508,2656.0,2655.4,3.76587]
[1739181527172,3.76495,2656.1,2655.4,3.76587]
[1739181527370,3.76495,2656.1,2655.4,7.53168]
[1739181527674,3.7648,2656.2,2655.6,3.76555]
[1739181528464,3.765,2656.1,2655.4,7.5316]
[1739181528672,3.765,2656.1,2655.5,3.76576]
[1739181528856,4.52361,2656.3,2655.6,3.76553]
[1739181529070,3.76487,2656.2,2655.6,3.76553]
[1739181529266,3.76487,2656.2,2655.5,3.76576]
[1739181529591,4.52361,2656.3,2655.5,3.76568]
[1739181529807,8.28836,2656.3,2655.7,3.76541]
[1739181530106,3.76487,2656.2,2655.6,3.76554]
[1739181530557,3.76406,2656.7,2655.8,3.76523]
[1739181530761,3.76442,2656.5,2655.8,3.76523]
[1739181530977,3.76442,2656.5,2656.0,3.76505]
[1739181532254,3.76442,2656.5,2656.1,0.0886813]
[1739181532689,3.76449,2656.4,2656.1,0.0886813]
[1739181532897,4.57136,2656.3,2655.6,3.76552]
[1739181533216,3.76511,2656.0,2655.4,17.87586]
[1739181533376,3.76511,2656.0,2655.4,3.76586]
[1739181533891,7.5303,2656.0,2655.4,3.76586]
[1739181534089,3.76521,2655.9,2655.4,3.76586]
[1739181534294,3.76511,2656.0,2655.5,3.76569]
[1739181534511,4.57128,2656.3,2655.2,3.76609]
[1739181534811,3.76523,2655.9,2655.2,3.76609]
[1739181535392,4.57203,2655.8,2655.2,3.76609]
[1739181535712,0.8066,2656.0,2655.2,8.86]
[1739181535894,0.8066,2656.0,2655.4,3.76577]
[1739181536509,0.8066,2656.0,2655.3,3.76605]
[1739181536817,0.8066,2656.0,2655.5,3.76575]
[1739181537360,4.57178,2656.0,2655.3,3.76605]
[1739181537658,0.8066,2656.0,2655.6,3.76562]
[1739181538194,0.8066,2656.0,2655.5,3.76568]
[1739181538720,4.57169,2656.0,2655.5,3.76568]
[1739181541159,0.75609406,2656.4,2655.3,7.5321]
[1739181541160,0.8066,2656.3,2655.3,7.5321]
[1739181541471,4.57131,2656.3,2655.6,3.76548]
[1739181541691,0.8066,2656.3,2655.7,3.76548]
[1739181542097,4.57137,2656.3,2655.7,3.76548]
[1739181542302,0.8066,2656.3,2655.8,3.76525]
[1739181542503,0.8066,2656.3,2655.5,2.67266369]
[1739181542504,0.8066,2656.3,2655.9,3.76519]
[1739181542684,0.8066,2656.5,2655.7,3.76537]
[1739181543006,3.76452,2656.4,2655.9,3.76519]
[1739181543508,3.76469,2656.3,2655.8,3.76534]
[1739181544621,7.52914,2656.4,2655.8,3.76534]
[1739181544911,3.76505,2656.1,2655.5,6.43839369]
[1739181545438,3.76463,2656.3,2655.7,3.76543]
[1739181545716,3.76478,2656.2,2655.6,7.53114]
[1739181545882,3.76478,2656.2,2655.6,3.76554]
[1739181546604,3.76498,2656.1,2655.6,3.76554]
[1739181547320,3.76478,2656.2,2655.7,0.08721701]
[1739181547618,3.76478,2656.2,2655.7,3.85261701]
[1739181547939,3.76493,2656.1,2655.7,0.08721701]
[1739181548120,7.52968,2656.2,2655.7,0.08721701]
[1739181548303,4.57119,2656.4,2655.7,3.85267701]
[1739181548507,3.76472,2656.3,2655.8,3.76532]
[1739181548703,3.76495,2656.1,2655.7,0.08721701]
[1739181548905,4.58176,2656.0,2655.9,0.08728844]
[1739181549119,4.58176,2656.0,2655.5,3.76576]
[1739181549317,4.58176,2656.0,2655.2,8.86]
[1739181549318,4.58176,2656.0,2655.9,0.08728844]
[1739181549616,4.58176,2656.0,2655.2,12.62611]
[1739181549617,3.76555,2655.7,2655.2,3.76611]
[1739181549995,4.58249,2655.5,2655.3,0.08728844]
[1739181550231,4.58249,2655.5,2654.7,3.7669]
[1739181550232,3.76591,2655.4,2654.7,3.7669]
[1739181550534,0.8167,2655.5,2654.6,3.76693]
[1739181550535,3.76619,2655.2,2654.6,3.76693]
[1739181550828,3.76677,2654.8,2654.3,8.86]
[1739181551032,0.8167,2654.9,2654.4,3.76723]
[1739181551606,0.8167,2654.9,2654.5,7.53434]
[1739181551822,0.8167,2654.9,2654.5,3.76717]
[1739181552017,4.58291,2655.2,2654.7,3.7669]
[1739181552219,0.8167,2655.2,2654.7,3.76681]
[1739181552418,3.76591,2655.4,2654.8,3.76668]
[1739181552419,4.58261,2655.4,2654.8,3.76668]
[1739181552602,3.76615,2655.3,2654.7,3.76681]
[1739181552802,3.76624,2655.2,2654.6,8.86]
[1739181553004,3.76624,2655.2,2654.6,12.627]
[1739181553204,7.53255,2655.2,2654.6,12.627]
[1739181553535,3.76624,2655.2,2654.6,12.627]
[1739181553736,3.76624,2655.2,2654.6,8.86]
[1739181554045,3.76566,2655.6,2654.6,8.86]
[1739181554046,3.7669,2654.7,2654.6,8.86]
[1739181554253,3.76704,2654.6,2653.8,8.86]
[1739181554403,3.76759,2654.3,2653.7,3.76831]
[1739181554726,3.76788,2654.1,2653.5,3.76848]
[1739181554934,3.76791,2654.0,2653.3,6.44146369]
[1739181555236,0.8167,2653.8,2653.2,8.86]
[1739181555537,4.58446,2654.1,2653.5,3.76853]
[1739181555759,4.58446,2654.1,2653.4,3.76863]
[1739181556236,4.58446,2654.1,2653.5,3.76847]
[1739181556409,4.58446,2654.1,2653.7,3.76822]
[1739181556410,0.8167,2654.1,2653.7,3.76822]
[1739181556619,3.76754,2654.3,2653.7,3.76822]
[1739181556826,4.58407,2654.4,2653.7,3.76821]
[1739181557045,0.8167,2654.4,2653.8,2.67266369]
[1739181557249,0.8167,2654.4,2654.0,3.76789]
[1739181557412,3.76705,2654.6,2654.0,3.76789]
[1739181557622,0.8167,2654.6,2654.1,3.76765]
[1739181557951,0.8167,2654.6,2654.1,6.44031369]
[1739181558116,3.76624,2655.2,2654.6,3.76704]
[1739181558316,4.58294,2655.2,2654.6,3.76704]
[1739181558548,3.76645,2655.1,2654.4,6.43994369]
[1739181558747,3.7665,2655.0,2654.4,6.43994369]
[1739181558909,8.34924,2655.2,2654.5,3.76708]
[1739181559116,3.76646,2655.1,2654.4,6.43990369]
[1739181559314,3.76646,2655.1,2654.5,3.76717]
[1739181559947,4.58294,2655.2,2654.4,6.43990369]
[1739181559948,3.76652,2655.0,2654.4,6.43990369]
[1739181560354,4.58294,2655.2,2654.5,3.76708]
[1739181560555,4.58294,2655.2,2654.6,3.76698]
[1739181560754,0.8167,2655.7,2654.7,2.67266369]
[1739181560951,0.8167,2655.7,2655.2,3.76619]
[1739181561124,0.8167,2655.7,2655.2,7.53224]
[1739181561323,0.8167,2655.7,2655.2,3.76605]
[1739181561762,0.8167,2655.7,2655.3,3.76604]
[1739181561921,0.8167,2655.7,2655.2,3.76605]
[1739181562258,0.8167,2655.7,2655.3,0.0858064]
[1739181562662,0.8167,2655.7,2655.2,3.76605]
[1739181562834,0.8167,2655.7,2655.4,0.0858064]
[1739181563030,0.8167,2655.7,2655.3,3.76603]
[1739181563247,0.8167,2655.7,2655.5,0.0858064]
[1739181563445,0.8167,2655.7,2655.3,3.76603]
[1739181563624,0.8167,2655.7,2655.6,0.08471274]
[1739181563824,0.8167,2655.7,2655.3,3.76603]
[1739181564020,0.8167,2655.7,2655.6,0.08471274]
[1739181564231,3.76582,2655.5,2655.0,3.76647]
[1739181564649,3.76593,2655.4,2654.9,8.86]
[1739181564964,3.76582,2655.5,2654.9,8.86]
[1739181565128,3.7661,2655.3,2654.9,8.86]
[1739181565530,0.8167,2655.4,2654.9,12.62661]
[1739181565731,4.58262,2655.4,2654.9,8.86]
[1739181566034,0.8167,2655.4,2654.8,3.76671]
[1739181566240,0.8167,2655.4,2654.9,3.7666]
[1739181567035,0.8167,2655.4,2655.0,3.76643]
[1739181567442,0.8167,2655.4,2654.9,3.76661]
[1739181568223,0.8167,2655.4,2655.0,3.76645]
[1739181568434,0.8167,2655.4,2654.9,3.76658]
[1739181568639,4.58266,2655.4,2654.9,3.76661]
[1739181568947,3.76607,2655.3,2654.8,3.76671]
[1739181569865,4.58263,2655.4,2654.9,3.76655]
[1739181570072,3.76615,2655.3,2654.8,3.76671]
[1739181570277,3.76615,2655.3,2654.6,3.76692]
[1739181570450,3.76627,2655.2,2654.6,3.76692]
[1739181570930,3.76645,2655.1,2654.6,3.76692]
[1739181571478,0.8167,2655.4,2654.6,3.76692]
[1739181571805,4.58267,2655.4,2654.7,3.76688]
[1739181572394,0.76801254,2655.8,2654.6,3.76692]
[1739181572536,3.76607,2655.3,2654.8,3.76672]
[1739181572862,3.76607,2655.3,2654.6,3.7669]
[1739181573069,3.76628,2655.2,2654.6,3.7669]
[1739181573495,3.76628,2655.2,2654.5,4.57974]
[1739181573496,3.76639,2655.1,2654.5,4.57974]
[1739181573775,3.76639,2655.1,2654.5,3.76714]
[1739181574336,3.76673,2654.9,2654.3,14.9226]
[1739181574660,1.31801254,2655.8,2654.4,3.76721]
[1739181574661,3.76641,2655.1,2654.4,3.76721]
[1739181574838,3.76641,2655.1,2654.5,3.76716]
[1739181575041,7.53283,2655.1,2654.5,3.76716]
[1739181575543,0.8167,2655.0,2654.5,3.76716]
[1739181577086,0.8167,2655.0,2654.5,3.76709]
[1739181577367,0.8167,2655.0,2654.6,0.08552044]
[1739181577767,4.58321,2655.0,2654.6,0.08552044]
[1739181578069,0.8167,2655.0,2654.6,0.08552044]
[1739181578459,0.8167,2655.0,2654.7,3.76687]
[1739181578659,0.7576,2655.2,2654.7,3.76682]
[1739181579040,0.7576,2655.2,2654.8,0.08552044]
[1739181579237,0.7576,2655.2,2654.8,3.85219044]
[1739181579669,0.7576,2655.4,2654.8,0.89462044]
[1739181579980,4.5236,2655.4,2654.8,0.08552044]
[1739181580143,3.76626,2655.2,2654.8,0.08552044]
[1739181580455,0.7576,2655.0,2654.5,7.53418]
[1739181580774,0.7576,2655.0,2654.4,3.76732]
[1739181580953,3.76664,2654.9,2654.6,0.08552044]
[1739181581153,3.76664,2654.9,2654.4,3.76732]
[1739181581354,3.76664,2654.9,2654.7,0.08552044]
[1739181581577,3.76664,2654.9,2654.3,18.68649]
[1739181581743,3.76664,2654.9,2654.8,0.08552044]
[1739181581943,3.76664,2654.9,2654.3,18.68649]
[1739181582159,3.76664,2654.9,2654.8,0.08552044]
[1739181582366,3.76684,2654.8,2654.3,17.87738]
[1739181582644,0.7576,2654.7,2654.2,3.76759]
[1739181582844,4.52458,2654.7,2654.2,3.76759]
[1739181583043,3.76712,2654.6,2654.0,3.7678]
[1739181583281,7.5343,2654.6,2654.0,3.7678]
[1739181583776,3.76712,2654.6,2654.0,7.5356]
[1739181583975,3.76712,2654.6,2654.0,3.7678]
[1739181584190,0.7576,2654.7,2653.9,5.25]
[1739181584348,0.7576,2654.2,2653.8,5.94404244]
[1739181584874,0.7576,2654.2,2653.9,3.76793]
[1739181585096,0.7576,2654.5,2654.0,3.76779]
[1739181585459,4.52482,2654.5,2653.9,3.76803]
[1739181585650,4.52482,2654.5,2653.9,7.53597]
[1739181585845,4.52482,2654.5,2653.9,7.5359]
[1739181586053,0.7576,2654.5,2654.0,3.76777]
[1739181586679,3.76672,2654.9,2654.0,2.6787444]
[1739181586858,3.76686,2654.8,2654.2,3.76753]
[1739181587483,0.7576,2655.0,2654.1,3.76775]
[1739181587786,4.52476,2654.6,2654.1,3.76775]
[1739181588679,0.7576,2654.6,2654.1,3.76775]
[1739181588859,0.7576,2654.6,2654.1,3.76766]
[1739181589186,0.7576,2654.6,2654.2,3.76754]
[1739181589681,0.7576,2654.6,2654.1,3.76765]
[1739181590183,0.7576,2654.6,2654.1,3.76771]
[1739181590503,3.76718,2654.5,2653.9,3.7679]
[1739181590876,3.76718,2654.5,2654.0,3.76776]
[1739181591180,0.7576,2654.6,2653.9,3.7679]
[1739181591382,4.52464,2654.6,2654.1,3.76774]
[1739181592161,4.52464,2654.6,2654.1,3.76767]
[1739181592362,0.7576,2654.6,2654.2,0.0860353]
[1739181593474,4.52465,2654.6,2654.2,0.0860353]
[1739181594052,0.7576,2654.6,2654.2,3.8535453]
[1739181594494,0.7576,2654.6,2654.2,0.0860353]
[1739181594992,4.52467,2654.6,2654.2,0.0860353]
[1739181596396,0.7576,2654.6,2654.2,0.0860353]
[1739181596766,0.7576,2654.6,2654.2,3.8536353]
[1739181597166,0.7576,2654.6,2654.2,0.0860353]
[1739181597367,0.76369614,2655.2,2654.4,3.76731]
[1739181597368,4.5583,2654.9,2654.4,3.76731]
[1739181598098,4.5583,2654.9,2654.5,0.0860353]
[1739181598296,0.7916,2654.9,2654.5,0.0860353]
[1739181598489,4.55823,2654.9,2654.5,0.0860353]
[1739181599801,0.7916,2654.9,2654.5,0.0860353]
[1739181599996,4.5583,2654.9,2654.5,0.0860353]
[1739181600201,4.5583,2654.9,2654.4,3.76727]
[1739181600376,0.7916,2654.9,2654.4,3.76721]
[1739181600871,0.7916,2654.9,2654.5,3.76715]
[1739181601207,4.55828,2654.9,2654.4,3.76721]
[1739181601397,0.7916,2654.9,2654.5,3.76708]
[1739181601597,0.7916,2654.9,2654.4,3.76732]
[1739181601770,3.76677,2654.8,2654.3,5.25]
[1739181602100,4.5583,2654.9,2654.4,3.7673]
[1739181602603,4.55834,2654.9,2654.4,3.7673]
[1739181603104,0.7916,2654.9,2654.5,3.76714]
[1739181603304,0.7916,2654.9,2654.4,3.7673]
[1739181603469,4.55829,2654.9,2654.4,3.7673]
[1739181603969,4.55829,2654.9,2654.4,7.53452]
[1739181604303,4.55829,2654.9,2654.4,3.76725]
[1739181605071,4.55829,2654.9,2654.4,7.53449]
[1739181605303,0.7916,2654.9,2654.4,3.76724]
[1739181605530,0.7916,2654.9,2654.5,3.76708]
[1739181605712,0.7916,2654.9,2654.4,3.76724]
[1739181606006,0.7916,2654.9,2654.5,3.76718]
[1739181606380,0.7916,2654.9,2654.6,3.76703]
[1739181606809,4.31569,2655.6,2654.3,5.25]
[1739181606810,0.55,2655.6,2654.3,5.25]
[1739181607012,0.7947,2655.2,2654.9,3.76654]
[1739181607191,0.7947,2655.2,2655.0,3.76647]
[1739181607387,1.53377821,2655.9,2654.9,3.76662]
[1739181607710,4.55802,2655.9,2655.3,3.76597]
[1739181608412,3.76552,2655.7,2655.1,2.17571939]
[1739181608620,0.7928,2655.6,2655.1,3.76623]
[1739181608931,4.55851,2655.6,2655.1,3.76623]
[1739181610117,0.7928,2655.6,2655.1,7.53249]
[1739181610714,0.7928,2655.6,2655.1,3.76623]
[1739181611179,0.7928,2655.6,2655.2,3.76617]
[1739181611586,0.7928,2655.6,2655.1,3.76621]
[1739181611916,0.7928,2655.3,2654.9,9.0166]
[1739181612102,4.55888,2655.3,2654.9,5.25]
[1739181612685,0.7928,2655.3,2654.9,5.25]
[1739181612891,0.7928,2655.3,2655.0,3.76645]
[1739181613091,0.7928,2655.3,2655.1,3.76623]
[1739181613287,3.76588,2655.5,2654.9,9.01653]
[1739181613511,3.76587,2655.5,2654.9,9.01653]
[1739181613788,0.7928,2655.3,2654.9,5.25]
[1739181614592,4.55888,2655.3,2654.6,12.62697]
[1739181614816,8.32507,2655.3,2654.7,3.76683]
[1739181615012,4.55902,2655.2,2654.7,3.76683]
[1739181615521,3.76634,2655.1,2654.6,9.2377]
[1739181615702,0.7928,2654.9,2654.8,0.08499861]
[1739181616024,0.7928,2654.9,2654.6,8.86]
[1739181616189,0.7928,2654.9,2654.8,0.08523449]
[1739181616390,0.7928,2654.9,2654.6,8.86]
[1739181616593,0.7928,2654.9,2654.8,0.08523449]
[1739181616792,0.7928,2654.9,2654.6,12.62703]
[1739181616990,0.7928,2654.9,2654.8,0.08523449]
[1739181617218,0.7928,2654.9,2654.7,3.85227323]
[1739181617423,0.7928,2654.9,2654.8,0.08546329]
[1739181619252,0.7928,2655.1,2654.8,0.08546329]
[1739181619726,4.5592,2655.1,2654.8,0.08546329]
[1739181619919,0.7928,2655.1,2654.6,3.767]
[1739181620115,0.7928,2655.1,2654.9,0.08546329]
[1739181620315,3.76647,2655.0,2654.5,9.01708]
[1739181620515,3.76645,2655.1,2655.0,0.08535603]
[1739181620720,0.7928,2655.1,2654.5,9.01708]
[1739181620920,4.55918,2655.1,2655.0,0.08571346]
[1739181621104,4.55918,2655.1,2654.5,5.25]
[1739181621105,3.76659,2655.0,2654.5,5.25]
[1739181621310,4.58109,2654.9,2654.4,3.7673]
[1739181621913,0.8144,2654.9,2654.5,3.76716]
[1739181622635,3.76612,2655.3,2654.8,3.76676]
[1739181622827,0.8144,2655.2,2654.8,7.53352]